fUSD/lending_fUSD_20240121
["ID","MTS","AMOUNT","RATE_DAILY","PERIOD"]
[312403506,1705858369939,-439.36225712,0.00044575,30]
[312403507,1705858369949,-1403.21194888,0.00044587,7]
[312403508,1705858369958,-152.7576,0.000446,30]
[312403509,1705858369968,-156.0,0.000446,30]
[312403510,1705858369978,-4559.14247544,0.00044616,14]
[312403511,1705858369988,-2270.41904548,0.00044616,14]
[312403512,1705858369997,-3107.7026273,0.00044616,14]
[312403513,1705858370009,-3452.27253791,0.00044616,14]
[312403514,1705858370019,-2731.20362266,0.00044616,14]
[312403515,1705858370029,-10000.0,0.0004465,15]
[312403516,1705858370039,-597.66,0.00044657,30]
[312403517,1705858370049,-20026.96549569,0.000447,12]
[312403518,1705858370060,-111385.14403085,0.000447,2]
[312403519,1705858370071,-500.0,0.00044712,14]
[312403520,1705858370082,-175.47366985,0.00044748,7]
[312403521,1705858370094,-20000.0,0.0004478,15]
[312403522,1705858370105,-300.0,0.00044795,5]
[312403523,1705858370115,-406.0,0.00044795,5]
[312403524,1705858370125,-500.0,0.000448,2]
[312403525,1705858370135,-152.7576,0.000448,30]
[312403526,1705858370145,-1503.1144,0.000448,30]
[312403527,1705858370155,-1438.01619409,0.000448,120]
[312403528,1705858370167,-1206.28,0.000448,5]
[312403529,1705858370177,-1206.28,0.000448,5]
[312403530,1705858370187,-1206.28,0.000448,5]
[312403531,1705858370197,-1206.28,0.000448,5]
[312403532,1705858370207,-1206.28,0.000448,5]
[312403533,1705858370217,-1206.28,0.000448,5]
[312403534,1705858370226,-1206.28,0.000448,5]
[312403535,1705858370236,-1206.28,0.000448,5]
[312403536,1705858370245,-1206.28,0.000448,5]
[312403537,1705858370259,-1206.28,0.000448,5]
[312403538,1705858370269,-1206.28,0.000448,5]
[312403539,1705858370278,-1206.28,0.000448,5]
[312403540,1705858370288,-1206.28,0.000448,5]
[312403541,1705858370298,-1206.28,0.000448,5]
[312403542,1705858370307,-1206.28,0.000448,5]
[312403543,1705858370317,-1206.28,0.000448,5]
[312403544,1705858370327,-1206.28,0.000448,5]
[312403545,1705858370337,-1206.28,0.000448,5]
[312403546,1705858370346,-1206.28,0.000448,5]
[312403547,1705858370356,-1206.28,0.000448,5]
[312403548,1705858370365,-158.65,0.000448,5]
[312403549,1705858370375,-158.65,0.000448,5]
[312403550,1705858370385,-158.65,0.000448,5]
[312403551,1705858370394,-158.65,0.000448,5]
[312403552,1705858370404,-153.49,0.000448,5]
[312403553,1705858370413,-153.49,0.000448,5]
[312403554,1705858370422,-153.49,0.000448,5]
[312403555,1705858370432,-153.49,0.000448,5]
[312403556,1705858370441,-153.49,0.000448,5]
[312403557,1705858370451,-153.49,0.000448,5]
[312403558,1705858370460,-156.06191131,0.00044831,25]
[312403559,1705858370470,-205.0,0.0004489,30]
[312403560,1705858370480,-205.0,0.0004489,30]
[312403561,1705858370491,-28683.0,0.0004489,3]
[312403562,1705858370501,-457665.09826124,0.000449,30]
[312403563,1705858370511,-3083.79684827,0.000449,31]
[312403564,1705858370520,-45782.0,0.000449,30]
[312403565,1705858370529,-597.66,0.00044931,30]
[312403566,1705858370540,-466.85485218,0.00044931,2]
[312403567,1705858370549,-508.14976173,0.00044931,31]
[312403568,1705858370559,-500.0,0.00044931,31]
[312403569,1705858370569,-500.0,0.00044931,31]
[312403570,1705858370579,-500.0,0.00044931,31]
[312403571,1705858370588,-500.0,0.00044931,31]
[312403572,1705858370599,-845.58,0.00044931,31]
[312403573,1705858370609,-500.0,0.00044931,31]
[312403574,1705858370618,-800.59,0.00044931,31]
[312403575,1705858370627,-500.0,0.00044931,31]
[312403576,1705858370636,-521.39166327,0.00044931,31]
[312403577,1705858370645,-508.17,0.00044931,31]
[312403578,1705858370654,-526.82,0.00044931,31]
[312403579,1705858370664,-608.82,0.00044931,31]
[312403580,1705858370673,-579.4194389,0.00044931,31]
[312403581,1705858370682,-229.60241362,0.00044931,31]
[312403582,1705858370691,-669.62,0.00044931,31]
[312403583,1705858370701,-500.0,0.00044931,31]
[312403584,1705858370710,-500.0,0.00044931,31]
[312403585,1705858370721,-500.0,0.00044931,31]
[312403586,1705858370730,-529.79,0.00044931,31]
[312403587,1705858370739,-500.0,0.00044931,31]
[312403588,1705858370749,-500.0,0.00044931,31]
[312403589,1705858370759,-1950.75,0.00044931,31]
[312403590,1705858370769,-500.0,0.00044931,31]
[312403591,1705858370779,-500.0,0.00044931,31]
[312403592,1705858370788,-500.0,0.00044931,31]
[312403593,1705858370797,-500.0,0.00044931,31]
[312403594,1705858370806,-500.0,0.00044931,31]
[312403595,1705858370815,-739.79,0.00044931,31]
[312403596,1705858370824,-500.0,0.00044931,31]
[312403597,1705858370833,-500.0,0.00044931,31]
[312403598,1705858370843,-500.0,0.00044931,31]
[312403599,1705858370852,-612.53,0.00044931,31]
[312403600,1705858370861,-559.97,0.00044931,31]
[312403601,1705858370870,-583.04,0.00044931,31]
[312403602,1705858370880,-562.5,0.00044931,31]
[312403603,1705858370889,-500.0,0.00044931,31]
[312403604,1705858370898,-578.47,0.00044931,31]
[312403605,1705858370908,-692.97,0.00044931,31]
[312403606,1705858370917,-794.24,0.00044931,31]
[312403607,1705858371031,-501.17799738,0.00044931,31]
[312403608,1705858371042,-573.24,0.00044931,31]
[312403609,1705858371052,-707.04,0.00044931,31]
[312403610,1705858371062,-321.961029,0.00044931,31]
[312403611,1705858371073,-500.0,0.00044931,31]
[312403612,1705858371084,-500.0,0.00044931,31]
[312403613,1705858371094,-500.0,0.00044931,31]
[312403614,1705858371103,-516.75986814,0.00044931,31]
[312403615,1705858371112,-500.0,0.00044931,31]
[312403616,1705858371121,-607.75,0.00044931,30]
[312403617,1705858371131,-500.0,0.00044931,31]
[312403618,1705858371140,-563.5,0.00044931,31]
[312403619,1705858371150,-630.01,0.00044931,31]
[312403620,1705858371160,-500.0,0.00044931,31]
[312403621,1705858371169,-500.0,0.00044931,31]
[312403622,1705858371178,-500.0,0.00044931,31]
[312403623,1705858371188,-718.93,0.00044931,31]
[312403624,1705858371197,-500.0,0.00044931,31]
[312403625,1705858371206,-578.94137887,0.00044931,31]
[312403626,1705858371215,-500.0,0.00044931,31]
[312403627,1705858371225,-500.0,0.00044931,31]
[312403628,1705858371234,-713.35,0.00044931,31]
[312403629,1705858371243,-516.033144,0.00044931,31]
[312403630,1705858371253,-500.0,0.00044931,31]
[312403631,1705858371262,-500.0,0.00044931,31]
[312403632,1705858371271,-500.0,0.00044931,31]
[312403633,1705858371280,-500.0,0.00044931,7]
[312403634,1705858371289,-500.0,0.00044931,31]
[312403635,1705858371299,-500.0,0.00044931,31]
[312403636,1705858371309,-605.12,0.00044931,31]
[312403637,1705858371318,-500.0,0.00044931,31]
[312403638,1705858371328,-500.0,0.00044931,31]
[312403639,1705858371338,-500.0,0.00044931,31]
[312403640,1705858371347,-161.36830651,0.00044931,31]
[312403641,1705858371356,-500.0,0.00044931,31]
[312403642,1705858371365,-500.0,0.00044931,31]
[312403643,1705858371374,-500.0,0.00044931,31]
[312403644,1705858371383,-542.52,0.00044931,31]
[312403645,1705858371393,-500.0,0.00044931,31]
[312403646,1705858371402,-500.0,0.00044931,31]
[312403647,1705858371411,-781.08,0.00044931,31]
[312403648,1705858371420,-1000.0,0.00044931,7]
[312403649,1705858371428,-500.0,0.00044931,31]
[312403650,1705858371437,-521.49,0.00044931,31]
[312403651,1705858371446,-500.0,0.00044931,31]
[312403652,1705858371456,-671.59,0.00044931,31]
[312403653,1705858371466,-518.55,0.00044931,31]
[312403654,1705858371474,-500.0,0.00044931,31]
[312403655,1705858371483,-543.95897019,0.00044931,31]
[312403656,1705858371492,-500.0,0.00044931,31]
[312403657,1705858371502,-500.0,0.00044931,31]
[312403658,1705858371511,-576.57,0.00044931,31]
[312403659,1705858371520,-639.66,0.00044931,31]
[312403660,1705858371530,-500.0,0.00044931,31]
[312403661,1705858371540,-500.0,0.00044931,31]
[312403662,1705858371551,-500.0,0.00044931,31]
[312403663,1705858371560,-518.49680604,0.00044931,31]
[312403664,1705858371569,-500.0,0.00044931,31]
[312403665,1705858371578,-500.0,0.00044931,31]
[312403666,1705858371588,-500.0,0.00044931,31]
[312403667,1705858371596,-500.0,0.00044931,31]
[312403668,1705858371606,-665.96,0.00044931,31]
[312403669,1705858371615,-606.4,0.00044931,31]
[312403670,1705858371625,-500.0,0.00044931,31]
[312403671,1705858371635,-500.0,0.00044931,31]
[312403672,1705858371645,-500.0,0.00044931,31]
[312403673,1705858371655,-500.0,0.00044931,31]
[312403674,1705858371664,-500.0,0.00044931,31]
[312403675,1705858371673,-610.64,0.00044931,31]
[312403676,1705858371682,-500.0,0.00044931,31]
[312403677,1705858371691,-500.0,0.00044931,31]
[312403678,1705858371701,-500.0,0.00044931,31]
[312403679,1705858371711,-619.69,0.00044931,31]
[312403680,1705858371720,-556.51,0.00044931,31]
[312403681,1705858371729,-1402.46,0.00044931,31]
[312403682,1705858371738,-500.0,0.00044931,31]
[312403683,1705858371747,-804.15,0.00044931,31]
[312403684,1705858371757,-500.0,0.00044931,31]
[312403685,1705858371766,-500.0,0.00044931,31]
[312403686,1705858371775,-500.0,0.00044931,31]
[312403687,1705858371784,-500.0,0.00044931,31]
[312403688,1705858371793,-500.0,0.00044931,31]
[312403689,1705858371802,-500.0,0.00044931,31]
[312403690,1705858371811,-500.0,0.00044931,31]
[312403691,1705858371820,-517.07713902,0.00044931,31]
[312403692,1705858371829,-500.0,0.00044931,31]
[312403693,1705858371838,-500.0,0.00044931,31]
[312403694,1705858371846,-500.0,0.00044931,31]
[312403695,1705858371855,-500.0,0.00044931,31]
[312403696,1705858371866,-500.0,0.00044931,31]
[312403697,1705858371877,-509.73,0.00044931,31]
[312403698,1705858371886,-500.0,0.00044931,31]
[312403699,1705858371895,-637.31,0.00044931,31]
[312403700,1705858371904,-500.0,0.00044931,31]
[312403701,1705858371913,-819.1,0.00044931,31]
[312403702,1705858371923,-500.0,0.00044931,31]
[312403703,1705858371936,-500.0,0.00044931,31]
[312403704,1705858371946,-854.66,0.00044931,31]
[312403705,1705858371955,-668.54,0.00044931,31]
[312403706,1705858371965,-500.0,0.00044931,31]
[312403707,1705858371974,-500.0,0.00044931,31]
[312403708,1705858371984,-500.0,0.00044931,31]
[312403709,1705858371993,-761.55,0.00044931,31]
[312403710,1705858372003,-524.62,0.00044931,31]
[312403711,1705858372013,-500.0,0.00044931,31]
[312403712,1705858372027,-667.4,0.00044931,31]
[312403713,1705858372036,-500.0,0.00044931,31]
[312403714,1705858372045,-500.0,0.00044931,31]
[312403715,1705858372055,-881.65,0.00044931,31]
[312403716,1705858372065,-500.0,0.00044931,31]
[312403717,1705858372078,-514.45,0.00044931,31]
[312403718,1705858372087,-500.0,0.00044931,31]
[312403719,1705858372096,-500.0,0.00044931,31]
[312403720,1705858372105,-663.24,0.00044931,31]
[312403721,1705858372115,-500.0,0.00044931,31]
[312403722,1705858372124,-519.32,0.00044931,31]
[312403723,1705858372138,-500.0,0.00044931,31]
[312403724,1705858372147,-500.0,0.00044931,31]
[312403725,1705858372156,-500.0,0.00044931,31]
[312403726,1705858372167,-667.18,0.00044931,31]
[312403727,1705858372176,-500.0,0.00044931,31]
[312403728,1705858372186,-628.26,0.00044931,31]
[312403729,1705858372195,-585.56,0.00044931,31]
[312403730,1705858372205,-500.0,0.00044931,31]
[312403731,1705858372214,-552.93644636,0.00044931,31]
[312403732,1705858372224,-500.0,0.00044931,31]
[312403733,1705858372234,-500.0,0.00044931,31]
[312403734,1705858372244,-500.0,0.00044931,31]
[312403735,1705858372255,-500.0,0.00044931,31]
[312403736,1705858372264,-500.0,0.00044931,31]
[312403737,1705858372274,-500.0,0.00044931,31]
[312403738,1705858372284,-500.0,0.00044931,31]
[312403739,1705858372294,-1000.0,0.00044931,7]
[312403740,1705858372303,-500.0,0.00044931,31]
[312403741,1705858372313,-771.66,0.00044931,31]
[312403742,1705858372323,-601.64,0.00044931,15]
[312403743,1705858372333,-659.58,0.00044931,31]
[312403744,1705858372343,-927.1,0.00044931,31]
[312403745,1705858372352,-752.58,0.00044931,31]
[312403746,1705858372362,-586.48,0.00044931,31]
[312403747,1705858372372,-500.0,0.00044931,31]
[312403748,1705858372382,-500.0,0.00044931,31]
[312403749,1705858372392,-500.0,0.00044931,31]
[312403750,1705858372402,-500.0,0.00044931,31]
[312403751,1705858372411,-500.0,0.00044931,31]
[312403752,1705858372420,-500.0,0.00044931,31]
[312403753,1705858372430,-500.0,0.00044931,31]
[312403754,1705858372439,-500.0,0.00044931,31]
[312403755,1705858372447,-659.42,0.00044931,31]
[312403756,1705858372457,-500.0,0.00044931,31]
[312403757,1705858372467,-500.0,0.00044931,31]
[312403758,1705858372478,-589.3,0.00044931,31]
[312403759,1705858372486,-500.0,0.00044931,31]
[312403760,1705858372496,-500.0,0.00044931,31]
[312403761,1705858372505,-212.59318759,0.00044931,31]
[312403762,1705858372514,-500.0,0.00044931,31]
[312403763,1705858372523,-500.0,0.00044931,31]
[312403764,1705858372532,-547.34,0.00044931,31]
[312403765,1705858372542,-500.0,0.00044931,31]
[312403766,1705858372553,-627.71,0.00044931,31]
[312403767,1705858372562,-500.0,0.00044931,31]
[312403768,1705858372571,-500.0,0.00044931,31]
[312403769,1705858372581,-904.01,0.00044931,31]
[312403770,1705858372590,-503.95695048,0.00044931,31]
[312403771,1705858372599,-500.0,0.00044931,31]
[312403772,1705858372609,-500.0,0.00044931,31]
[312403773,1705858372617,-744.5,0.00044931,31]
[312403774,1705858372627,-528.38,0.00044931,31]
[312403775,1705858372636,-500.0,0.00044931,31]
[312403776,1705858372645,-500.0,0.00044931,31]
[312403777,1705858372655,-541.26,0.00044931,31]
[312403778,1705858372664,-500.0,0.00044931,31]
[312403779,1705858372673,-500.0,0.00044931,31]
[312403780,1705858372683,-500.0,0.00044931,31]
[312403781,1705858372693,-616.68,0.00044931,31]
[312403782,1705858372701,-589.25,0.00044931,31]
[312403783,1705858372710,-681.77,0.00044931,31]
[312403784,1705858372719,-500.0,0.00044931,31]
[312403785,1705858372728,-500.0,0.00044931,31]
[312403786,1705858372737,-500.0,0.00044931,31]
[312403787,1705858372746,-500.0,0.00044931,31]
[312403788,1705858372756,-689.41,0.00044931,31]
[312403789,1705858372765,-733.26,0.00044931,31]
[312403790,1705858372775,-516.09,0.00044931,31]
[312403791,1705858372785,-521.72,0.00044931,31]
[312403792,1705858372795,-648.59,0.00044931,31]
[312403793,1705858372804,-500.0,0.00044931,31]
[312403794,1705858372814,-1334.82,0.00044931,31]
[312403795,1705858372823,-300.0,0.00044931,31]
[312403796,1705858372833,-500.0,0.00044931,31]
[312403797,1705858372844,-500.0,0.00044931,2]
[312403798,1705858372854,-543.26,0.00044931,31]
[312403799,1705858372863,-558.46,0.00044931,31]
[312403800,1705858372873,-1416.38,0.00044931,2]
[312403801,1705858372883,-500.0,0.00044931,31]
[312403802,1705858372893,-772.93,0.00044931,31]
[312403803,1705858372902,-537.8,0.00044931,31]
[312403804,1705858372911,-500.0,0.00044931,31]
[312403805,1705858372920,-646.27,0.00044931,31]
[312403806,1705858372929,-500.0,0.00044931,31]
[312403807,1705858372945,-1451.51,0.00044931,31]
[312403808,1705858372956,-500.0,0.00044931,31]
[312403809,1705858372965,-432.01639595,0.00044931,31]
[312403810,1705858372974,-618.07,0.00044931,31]
[312403811,1705858372985,-500.0,0.00044931,31]
[312403812,1705858372995,-692.68,0.00044931,31]
[312403813,1705858373004,-684.61,0.00044931,31]
[312403814,1705858373013,-500.0,0.00044931,31]
[312403815,1705858373023,-833.11,0.00044931,31]
[312403816,1705858373032,-500.0,0.00044931,31]
[312403817,1705858373042,-765.98,0.00044931,31]
[312403818,1705858373050,-635.0,0.00044931,31]
[312403819,1705858373060,-569.6,0.00044931,31]
[312403820,1705858373070,-997.4,0.00044931,31]
[312403821,1705858373079,-500.0,0.00044931,31]
[312403822,1705858373092,-500.0,0.00044931,31]
[312403823,1705858373102,-500.0,0.00044931,31]
[312403824,1705858373111,-796.16,0.00044931,31]
[312403825,1705858373122,-500.0,0.00044931,31]
[312403826,1705858373132,-500.0,0.00044931,31]
[312403827,1705858373141,-562.29,0.00044931,31]
[312403828,1705858373150,-530.76,0.00044931,31]
[312403829,1705858373161,-500.0,0.00044931,31]
[312403830,1705858373170,-869.35,0.00044931,31]
[312403831,1705858373179,-440.90286999,0.00044931,31]
[312403832,1705858373188,-500.0,0.00044931,31]
[312403833,1705858373198,-535.9600234,0.00044931,31]
[312403834,1705858373207,-500.0,0.00044931,31]
[312403835,1705858373216,-532.62,0.00044931,31]
[312403836,1705858373226,-1317.0,0.00044931,31]
[312403837,1705858373235,-499.5848,0.00044931,31]
[312403838,1705858373244,-559.68,0.00044931,31]
[312403839,1705858373254,-662.26,0.00044931,31]
[312403840,1705858373263,-500.0,0.00044931,31]
[312403841,1705858373272,-500.0,0.00044931,31]
[312403842,1705858373281,-796.99,0.00044931,31]
[312403843,1705858373291,-737.04,0.00044931,31]
[312403844,1705858373300,-500.0,0.00044931,31]
[312403845,1705858373309,-670.12,0.00044931,31]
[312403846,1705858373319,-843.71,0.00044931,31]
[312403847,1705858373328,-500.0,0.00044931,31]
[312403848,1705858373337,-897.27,0.00044931,31]
[312403849,1705858373347,-500.0,0.00044931,31]
[312403850,1705858373356,-500.0,0.00044931,31]
[312403851,1705858373365,-500.0,0.00044931,31]
[312403852,1705858373375,-1007.44,0.00044931,31]
[312403853,1705858373384,-500.0,0.00044931,31]
[312403854,1705858373394,-500.0,0.00044931,31]
[312403855,1705858373403,-500.0,0.00044931,31]
[312403856,1705858373411,-748.65,0.00044931,31]
[312403857,1705858373421,-444.71478695,0.00044931,31]
[312403858,1705858373430,-500.0,0.00044931,31]
[312403859,1705858373438,-500.0,0.00044931,60]
[312403860,1705858373447,-273.74551493,0.00044931,31]
[312403861,1705858373456,-1126.77,0.00044931,31]
[312403862,1705858373465,-796.98,0.00044931,31]
[312403863,1705858373474,-500.0,0.00044931,31]
[312403864,1705858373483,-788.72,0.00044931,31]
[312403865,1705858373492,-530.34,0.00044931,31]
[312403866,1705858373501,-608.0578486,0.00044931,31]
[312403867,1705858373511,-500.0,0.00044931,5]
[312403868,1705858373520,-1147.47,0.00044931,31]
[312403869,1705858373529,-500.0,0.00044931,31]
[312403870,1705858373538,-500.0,0.00044931,31]
[312403871,1705858373547,-883.78,0.00044931,31]
[312403872,1705858373556,-500.0,0.00044931,31]
[312403873,1705858373566,-590.82,0.00044931,31]
[312403874,1705858373575,-500.0,0.00044931,31]
[312403875,1705858373584,-715.34,0.00044931,31]
[312403876,1705858373593,-1084.43,0.00044931,31]
[312403877,1705858373603,-500.0,0.00044931,31]
[312403878,1705858373612,-500.0,0.00044931,31]
[312403879,1705858373621,-500.0,0.00044931,31]
[312403880,1705858373631,-504.9,0.00044931,31]
[312403881,1705858373640,-497.8534282,0.00044931,31]
[312403882,1705858373651,-784.14,0.00044931,2]
[312403883,1705858373661,-720.62,0.00044931,31]
[312403884,1705858373671,-735.28,0.00044931,31]
[312403885,1705858373681,-500.0,0.00044931,31]
[312403886,1705858373691,-857.01,0.00044931,31]
[312403887,1705858373701,-588.81,0.00044931,31]
[312403888,1705858373710,-609.36,0.00044931,31]
[312403889,1705858373720,-540.91515706,0.00044931,31]
[312403890,1705858373729,-500.0,0.00044931,31]
[312403891,1705858373739,-500.0,0.00044931,31]
[312403892,1705858373748,-698.28,0.00044931,20]
[312403893,1705858373758,-640.31,0.00044931,31]
[312403894,1705858373767,-589.47,0.00044931,31]
[312403895,1705858373777,-892.27,0.00044931,31]
[312403896,1705858373786,-689.61,0.00044931,31]
[312403897,1705858373796,-500.0,0.00044931,31]
[312403898,1705858373806,-673.82,0.00044931,31]
[312403899,1705858373815,-1059.2,0.00044931,31]
[312403900,1705858373824,-1142.77,0.00044931,31]
[312403901,1705858373833,-523.1,0.00044931,31]
[312403902,1705858373842,-685.54,0.00044931,31]
[312403903,1705858373852,-626.04,0.00044931,31]
[312403904,1705858373862,-500.0,0.00044931,31]
[312403905,1705858373872,-500.0,0.00044931,31]
[312403906,1705858373883,-500.0,0.00044931,31]
[312403907,1705858373893,-501.23,0.00044931,31]
[312403908,1705858373903,-937.48,0.00044931,31]
[312403909,1705858373912,-627.4,0.00044931,31]
[312403910,1705858373922,-1287.05,0.00044931,31]
[312403911,1705858373932,-613.32,0.00044931,31]
[312403912,1705858373941,-500.0,0.00044931,31]
[312403913,1705858373951,-1020.35,0.00044931,31]
[312403914,1705858373960,-500.0,0.00044931,31]
[312403915,1705858373970,-1030.81,0.00044931,31]
[312403916,1705858373979,-944.11,0.00044931,31]
[312403917,1705858373989,-500.0,0.00044931,31]
[312403918,1705858373998,-616.31,0.00044931,31]
[312403919,1705858374008,-801.3,0.00044931,31]
[312403920,1705858374017,-500.0,0.00044931,31]
[312403921,1705858374027,-785.3,0.00044931,31]
[312403922,1705858374036,-500.0,0.00044931,31]
[312403923,1705858374046,-1514.87,0.00044931,31]
[312403924,1705858374055,-500.0,0.00044931,31]
[312403925,1705858374064,-687.19,0.00044931,31]
[312403926,1705858374074,-510.67,0.00044931,31]
[312403927,1705858374085,-799.14,0.00044931,31]
[312403928,1705858374098,-598.15,0.00044931,31]
[312403929,1705858374107,-500.0,0.00044931,31]
[312403930,1705858374120,-500.0,0.00044931,31]
[312403931,1705858374130,-500.0,0.00044931,31]
[312403932,1705858374140,-500.0,0.00044931,31]
[312403933,1705858374149,-500.0,0.00044931,31]
[312403934,1705858374159,-500.0,0.00044931,31]
[312403935,1705858374169,-500.0,0.00044931,31]
[312403936,1705858374179,-943.23,0.00044931,31]
[312403937,1705858374188,-748.3,0.00044931,31]
[312403938,1705858374198,-653.96,0.00044931,31]
[312403939,1705858374207,-717.66,0.00044931,31]
[312403940,1705858374217,-500.93,0.00044931,31]
[312403941,1705858374226,-615.42,0.00044931,31]
[312403942,1705858374235,-1085.38,0.00044931,31]
[312403943,1705858374244,-623.21754884,0.00044931,31]
[312403944,1705858374253,-500.0,0.00044931,31]
[312403945,1705858374263,-544.45,0.00044931,2]
[312403946,1705858374272,-500.0,0.00044931,31]
[312403947,1705858374281,-791.93,0.00044931,7]
[312403948,1705858374290,-1089.26,0.00044931,31]
[312403949,1705858374300,-791.68,0.00044931,31]
[312403950,1705858374309,-597.73,0.00044931,31]
[312403951,1705858374318,-500.0,0.00044931,31]
[312403952,1705858374327,-500.0,0.00044931,31]
[312403953,1705858374337,-500.0,0.00044931,31]
[312403954,1705858374346,-500.0,0.00044931,31]
[312403955,1705858374355,-500.0,0.00044931,31]
[312403956,1705858374365,-733.67,0.00044931,31]
[312403957,1705858374374,-500.0,0.00044931,31]
[312403958,1705858374384,-242.43737266,0.00044931,31]
[312403959,1705858374393,-634.48,0.00044931,31]
[312403960,1705858374403,-500.0,0.00044931,31]
[312403961,1705858374413,-500.0,0.00044931,31]
[312403962,1705858374422,-978.66,0.00044931,31]
[312403963,1705858374431,-2489.12,0.00044931,31]
[312403964,1705858374441,-500.0,0.00044931,31]
[312403965,1705858374450,-802.28,0.00044931,31]
[312403966,1705858374460,-500.0,0.00044931,31]
[312403967,1705858374470,-500.0,0.00044931,31]
[312403968,1705858374479,-971.0,0.00044931,31]
[312403969,1705858374488,-632.04,0.00044931,31]
[312403970,1705858374498,-1114.65,0.00044931,31]
[312403971,1705858374508,-500.0,0.00044931,31]
[312403972,1705858374517,-753.06,0.00044931,31]
[312403973,1705858374528,-500.0,0.00044931,31]
[312403974,1705858374537,-500.0,0.00044931,31]
[312403975,1705858374547,-500.0,0.00044931,31]
[312403976,1705858374557,-500.0,0.00044931,31]
[312403977,1705858374567,-500.0,0.00044931,31]
[312403978,1705858374576,-500.0,0.00044931,31]
[312403979,1705858374586,-1398.52,0.00044931,31]
[312403980,1705858374596,-629.95,0.00044931,31]
[312403981,1705858374606,-500.0,0.00044931,31]
[312403982,1705858374615,-500.0,0.00044931,31]
[312403983,1705858374625,-956.47,0.00044931,31]
[312403984,1705858374634,-649.26,0.00044931,31]
[312403985,1705858374644,-892.97,0.00044931,31]
[312403986,1705858374653,-500.0,0.00044931,31]
[312403987,1705858374663,-500.0,0.00044931,31]
[312403988,1705858374672,-652.07,0.00044931,31]
[312403989,1705858374682,-500.0,0.00044931,31]
[312403990,1705858374692,-500.0,0.00044931,31]
[312403991,1705858374702,-723.49,0.00044931,31]
[312403992,1705858374713,-1071.67,0.00044931,31]
[312403993,1705858374723,-500.0,0.00044931,31]
[312403994,1705858374733,-1235.99,0.00044931,31]
[312403995,1705858374743,-563.48,0.00044931,31]
[312403996,1705858374754,-596.07,0.00044931,31]
[312403997,1705858374763,-500.0,0.00044931,31]
[312403998,1705858374772,-1710.77,0.00044931,31]
[312403999,1705858374784,-1311.77,0.00044931,31]
[312404000,1705858374795,-727.55,0.00044931,31]
[312404001,1705858374806,-1518.81,0.00044931,31]
[312404002,1705858374816,-500.0,0.00044931,31]
[312404003,1705858374826,-678.7,0.00044931,31]
[312404004,1705858374836,-801.37,0.00044931,20]
[312404005,1705858374847,-500.0,0.00044931,31]